bitfinex-derivatives/quotes_BTCF0:USTF0_20210111
["timestamp","ask_amount","ask_price","bid_price","bid_amount"]
[1610391307902,1.24179159,32848.0,32823.0,0.13632608]
[1610391307903,0.00363535,32840.0,32823.0,0.21718608]
[1610391308103,0.00363535,32840.0,32823.0,0.08086]
[1610391308703,4.733,32842.0,32823.0,0.08086]
[1610391308704,0.00363936,32839.0,32823.0,0.08086]
[1610391309104,0.00365228,32837.0,32823.0,0.08086]
[1610391309504,0.13632608,32824.0,32823.0,0.08086]
[1610391310705,0.13632608,32824.0,32809.0,0.55195064]
[1610391311605,0.13632608,32815.0,32809.0,0.55195064]
[1610391313607,0.07166,32832.0,32812.0,0.13632608]
[1610391315511,0.07166,32832.0,32819.0,0.13632608]
[1610391315912,0.00367943,32836.0,32809.0,0.55195064]
[1610391316113,0.71344441,32839.0,32809.0,0.55195064]
[1610391316114,0.00366974,32834.0,32809.0,0.55195064]
[1610391317314,0.00365957,32831.0,32809.0,0.55195064]
[1610391317514,0.13632608,32810.0,32809.0,0.55195064]
[1610391318316,0.0863,32822.0,32809.0,0.55195064]
[1610391319415,0.0863,32822.0,32809.0,0.46042064]
[1610391319617,0.13632608,32810.0,32809.0,0.46042064]
[1610391320219,4.83802608,32810.0,32809.0,0.46042064]
[1610391320418,4.7017,32810.0,32809.0,0.46042064]
[1610391321518,4.83802608,32810.0,32809.0,0.46042064]
[1610391322021,7.17568159,32810.0,32809.0,0.46042064]
[1610391322221,7.03935551,32810.0,32809.0,0.46042064]
[1610391322621,8.53935551,32810.0,32809.0,0.27742064]
[1610391322825,9.20738135,32810.0,32767.0,4.1293]
[1610391323022,4.50568135,32810.0,32762.0,2.11831765]
[1610391323224,4.1556,32779.0,32753.0,2.39276633]
[1610391323422,0.09944,32785.0,32753.0,2.39276633]
[1610391323623,0.13632608,32755.0,32753.0,0.09982]
[1610391327026,0.13632608,32755.0,32727.0,4.602]
[1610391327436,0.22940608,32755.0,32727.0,4.602]
[1610391327632,0.09308,32755.0,32734.0,0.13632608]
[1610391328227,0.09308,32755.0,32729.0,0.09508]
[1610391328636,4.5738,32748.0,32729.0,0.09508]
[1610391329327,0.09308,32755.0,32729.0,0.09508]
[1610391329527,0.13632608,32730.0,32729.0,0.09508]
[1610391329928,4.52552608,32730.0,32729.0,0.09508]
[1610391331132,4.3892,32730.0,32729.0,0.09508]
[1610391331332,4.3892,32730.0,32681.0,2.36732026]
[1610391331532,0.07662,32741.0,32675.0,2.36154203]
[1610391331730,0.07662,32741.0,32675.0,2.44458203]
[1610391331931,4.8319,32703.0,32675.0,0.08304]
[1610391332130,0.07662,32741.0,32675.0,0.08304]
[1610391332331,0.13632608,32689.0,32684.0,0.13632608]
[1610391332730,0.07662,32741.0,32684.0,0.13632608]
[1610391332933,0.07662,32741.0,32696.0,3.5909]
[1610391333130,0.07662,32741.0,32696.0,0.08214]
[1610391333330,0.07662,32741.0,32707.0,4.9054]
[1610391333531,0.07662,32741.0,32707.0,5.00015]
[1610391334333,0.07662,32741.0,32733.0,0.13632608]
[1610391335133,0.07662,32741.0,32707.0,5.00015]
[1610391335435,0.07662,32741.0,32707.0,0.09475]
[1610391335633,4.787,32735.0,32707.0,0.09475]
[1610391335933,4.787,32735.0,32696.0,0.08214]
[1610391336133,4.787,32735.0,32691.0,3.4702]
[1610391337736,3.7858,32720.0,32684.0,0.08273]
[1610391338135,3.7858,32720.0,32670.0,4.5]
[1610391338536,0.10208,32728.0,32664.0,2.15702653]
[1610391338735,4.5052,32714.0,32660.0,2.15726309]
[1610391338935,0.10208,32728.0,32664.0,0.07684]
[1610391339136,4.2843,32706.0,32691.0,0.36665922]
[1610391339336,4.37821,32706.0,32691.0,0.36665922]
[1610391341140,0.13632608,32692.0,32691.0,0.36665922]
[1610391341341,0.23511608,32692.0,32691.0,0.36665922]
[1610391342442,0.13632608,32692.0,32691.0,0.36665922]
[1610391344445,3.7462,32693.0,32691.0,0.36665922]
[1610391345043,0.13632608,32692.0,32691.0,0.36665922]
[1610391345647,5.26372608,32692.0,32691.0,0.36665922]
[1610391346148,5.33254608,32692.0,32664.0,0.07684]
[1610391346349,5.33254608,32692.0,32610.0,2.13045887]
[1610391346350,0.20514608,32692.0,32610.0,2.13045887]
[1610391346583,4.9652,32665.0,32624.0,4.4249]
[1610391346772,0.20514608,32692.0,32594.0,2.13076571]
[1610391346773,0.08354,32666.0,32594.0,2.13076571]
[1610391346960,0.08354,32666.0,32613.0,4.948]
[1610391347346,0.08354,32666.0,32636.0,0.13632608]
[1610391347561,0.08354,32666.0,32636.0,0.22994608]
[1610391347766,0.08354,32666.0,32636.0,4.95184608]
[1610391347946,0.06882,32692.0,32636.0,0.22994608]
[1610391348149,0.09078,32699.0,32636.0,0.09362]
[1610391348348,4.9732,32727.0,32650.0,3.6656]
[1610391348547,4.9732,32727.0,32650.0,3.74398]
[1610391349949,4.9732,32727.0,32668.0,0.13632608]
[1610391350149,4.9732,32727.0,32669.0,0.6287]
[1610391350348,0.00329077,32743.0,32668.0,0.23639608]
[1610391350548,0.00329077,32743.0,32670.0,3.5052]
[1610391351149,4.40316714,32745.0,32670.0,3.5052]
[1610391351150,0.00328171,32744.0,32670.0,3.5052]
[1610391351449,3.9329,32745.0,32670.0,3.5052]
[1610391351952,0.00326651,32744.0,32668.0,0.10007]
[1610391352150,4.1146,32722.0,32668.0,0.10007]
[1610391352351,4.18743,32722.0,32668.0,0.10007]
[1610391352550,4.18743,32722.0,32655.0,4.072]
[1610391352752,0.13632608,32656.0,32650.0,0.07838]
[1610391353151,0.10347,32682.0,32650.0,0.07838]
[1610391353551,0.10347,32682.0,32642.0,3.7742]
[1610391353751,0.10347,32682.0,32650.0,0.09451]
[1610391354350,0.10347,32682.0,32636.0,0.09362]
[1610391354550,0.10347,32682.0,29758.0,0.008]
[1610391354551,4.0703,32651.0,32606.0,4.0406]
[1610391354753,0.08518,32651.0,32586.0,2.11284403]
[1610391354952,0.08518,32651.0,32453.0,0.1556]
[1610391354953,3.855,32616.0,32571.0,3.7794]
[1610391355151,0.10904,32617.0,32566.0,2.11351845]
[1610391355351,4.4237,32601.0,32566.0,0.08705]
[1610391357752,0.13632608,32591.0,32581.0,0.13632608]
[1610391357952,0.13632608,32591.0,32566.0,0.08705]
[1610391358352,4.4237,32601.0,32566.0,0.08705]
[1610391359153,0.08117,32606.0,32566.0,0.08705]
[1610391359353,4.5848,32589.0,32566.0,0.08705]
[1610391359753,0.13632608,32567.0,32566.0,0.08705]
[1610391360355,0.13632608,32567.0,32510.0,4.9279]
[1610391360556,0.5746,32573.0,32510.0,4.9279]
[1610391360755,0.5746,32573.0,32510.0,5.03441]
[1610391360956,0.08802,32576.0,32510.0,0.10651]
[1610391361158,4.4632,32566.0,32510.0,0.10651]
[1610391361357,0.08802,32576.0,32510.0,0.10651]
[1610391361556,0.09262,32598.0,32521.0,3.8736]
[1610391361758,0.13632608,32572.0,32557.0,0.13632608]
[1610391363159,0.09545,32580.0,32557.0,0.13632608]
[1610391363762,0.09545,32580.0,32556.0,0.09116]
[1610391364160,0.08117,32606.0,32556.0,0.09116]
[1610391364360,0.13632608,32572.0,32556.0,0.09116]
[1610391364562,0.10536,32582.0,32556.0,0.09116]
[1610391364962,3.8579,32577.0,32556.0,0.09116]
[1610391365362,3.8579,32577.0,32523.0,5.1442]
[1610391365562,0.10536,32582.0,32521.0,0.06928]
[1610391365762,4.8914,32571.0,32521.0,0.06928]
[1610391365962,4.98919,32571.0,32521.0,0.06928]
[1610391366363,4.98919,32571.0,32535.0,0.13632608]
[1610391366563,0.09779,32571.0,32535.0,0.10949]
[1610391367162,1.0,32551.0,32535.0,0.10949]
[1610391367563,4.3935,32550.0,32535.0,0.10949]
[1610391368565,0.13632608,32541.0,32535.0,0.10949]
[1610391369165,0.11264,32562.0,32535.0,0.10949]
[1610391369365,4.2963,32595.0,32535.0,0.10949]
[1610391369767,1.0,32635.0,32551.0,4.1927]
[1610391369967,1.0,32635.0,32551.0,4.30632]
[1610391370167,1.0,32635.0,32551.0,0.11362]
[1610391370369,4.0386,32625.0,32551.0,0.11362]
[1610391370568,4.11777,32625.0,32584.0,0.13632608]
[1610391370768,4.11777,32625.0,32584.0,0.08931]
[1610391372672,4.11777,32625.0,32622.0,0.13632608]
[1610391372673,0.07917,32625.0,32622.0,0.13632608]
[1610391373273,4.7741,32661.0,32622.0,0.13632608]
[1610391373472,0.00312617,32692.0,32622.0,0.13632608]
[1610391373673,0.3179,32697.0,32622.0,0.13632608]
[1610391374476,0.3179,32697.0,32620.0,3.61962]
[1610391374675,0.42732,32697.0,32620.0,3.61962]
[1610391375074,0.42732,32697.0,32645.0,0.13632608]
[1610391375476,0.42732,32697.0,32645.0,0.11232]
[1610391376978,0.42732,32697.0,32646.0,3.8585]
[1610391377178,0.10942,32697.0,32646.0,3.8585]
[1610391377579,5.0448,32727.0,32646.0,3.8585]
[1610391377781,0.13632608,32683.0,32674.0,0.13632608]
[1610391377980,0.13632608,32683.0,32646.0,3.8585]
[1610391378982,0.08346,32704.0,32646.0,3.8585]
[1610391379183,0.08346,32704.0,32645.0,0.11232]
[1610391379783,0.13632608,32662.0,32660.0,0.13632608]
[1610391380884,0.13632608,32662.0,32645.0,0.11232]
[1610391381085,0.13632608,32662.0,32640.0,4.8665]
[1610391381690,0.13632608,32662.0,32620.0,0.58800631]
[1610391381886,0.13632608,32654.0,32629.0,0.13632608]
[1610391382287,0.06873,32656.0,32620.0,0.58800631]
[1610391382687,0.7232,32655.0,32620.0,0.58800631]
[1610391383090,0.7232,32655.0,32620.0,0.47828631]
[1610391383789,0.7232,32655.0,32651.0,0.13632608]
[1610391383989,0.7232,32655.0,32639.0,0.09069]
[1610391385091,0.06873,32656.0,32620.0,0.47828631]
[1610391385290,1.0,32643.0,32620.0,0.47828631]
[1610391385491,1.09822,32643.0,32620.0,0.47828631]
[1610391386191,0.13632608,32621.0,32620.0,0.47828631]
[1610391386390,0.23342608,32621.0,32620.0,0.47828631]
[1610391388395,0.23342608,32621.0,32620.0,0.47642007]
[1610391388595,0.90682608,32621.0,32620.0,0.47642007]
[1610391394707,0.90682608,32621.0,32620.0,0.38308764]
[1610391395104,0.23342608,32621.0,32620.0,0.38308764]
[1610391395305,5.04992608,32621.0,32620.0,0.38308764]
[1610391395505,0.23342608,32621.0,32620.0,0.38308764]
[1610391396707,0.82272608,32621.0,32620.0,0.38308764]
[1610391398006,0.94842608,32640.0,32620.0,0.38308764]
[1610391398206,0.64942608,32640.0,32620.0,0.38308764]
[1610391398405,0.64942608,32640.0,32639.0,0.13632608]
[1610391398607,0.09822,32643.0,32620.0,0.38308764]
[1610391398806,0.1556,32655.0,32620.0,0.45687764]
[1610391399206,0.06873,32656.0,32620.0,0.45687764]
[1610391399406,0.0754,32668.0,32620.0,0.45687764]
[1610391399607,0.00318156,32683.0,32620.0,0.45687764]
[1610391400007,0.66676499,32689.0,32620.0,0.45687764]
[1610391400008,0.003189,32689.0,32620.0,0.45687764]
[1610391400408,0.00319294,32687.0,32620.0,0.45687764]
[1610391400807,0.00318831,32683.0,32620.0,0.45687764]
[1610391401007,0.00319373,32680.0,32620.0,0.45687764]
[1610391401208,0.07826373,32680.0,32620.0,0.45687764]
[1610391401409,0.00318926,32672.0,32620.0,0.45687764]
[1610391401608,4.1232,32661.0,32620.0,0.38308764]
[1610391401809,4.22519,32661.0,32620.0,0.38308764]
[1610391402414,0.00318256,32657.0,32620.0,0.38308764]
[1610391402812,0.00318256,32657.0,32624.0,0.13632608]
[1610391403013,0.00318256,32657.0,32620.0,0.38308764]
[1610391403213,1.00319427,32658.0,32620.0,0.38308764]
[1610391403813,0.00319107,32654.0,32620.0,0.38308764]
[1610391404014,0.09676107,32654.0,32620.0,0.38308764]
[1610391404317,0.00319021,32651.0,32620.0,0.38308764]
[1610391404719,0.00319857,32652.0,32630.0,0.13632608]
[1610391405124,0.09357,32654.0,32630.0,0.13632608]
[1610391405515,0.09357,32654.0,32630.0,0.13446032]
[1610391406923,0.09357,32654.0,32620.0,0.38308764]
[1610391407522,0.09357,32654.0,32653.0,0.13632608]
[1610391408316,0.09357,32654.0,32637.0,0.09784]
[1610391408916,0.09357,32654.0,32620.0,0.38308764]
[1610391409116,0.10199,32661.0,32620.0,0.38308764]
[1610391409317,0.00327114,32669.0,32620.0,0.38308764]
[1610391409318,0.00327441,32667.0,32620.0,0.38308764]
[1610391409517,0.00327441,32667.0,32639.0,0.13632608]
[1610391409716,0.00328446,32666.0,32620.0,0.38308764]
[1610391410020,0.00329029,32664.0,32620.0,0.38308764]
[1610391410217,0.07894029,32664.0,32620.0,0.38308764]
[1610391410418,0.00329855,32663.0,32620.0,0.38308764]
[1610391410817,0.07565,32664.0,32620.0,0.38308764]
[1610391411419,0.00330252,32663.0,32637.0,0.13632608]
[1610391411822,0.07897368,32664.0,32637.0,0.13632608]
[1610391412220,0.07565,32664.0,32637.0,0.13632608]
[1610391413423,0.07565,32664.0,32657.0,0.13632608]
[1610391414021,0.07565,32664.0,32632.0,0.07071]
[1610391414221,0.07565,32664.0,32635.0,3.8288]
[1610391415522,0.00337367,32669.0,32656.0,0.13632608]
[1610391415723,0.00338819,32667.0,32656.0,0.13632608]
[1610391416122,0.00338819,32667.0,32656.0,0.13446125]
[1610391416722,0.00338062,32669.0,32635.0,3.8288]
[1610391416922,0.00338062,32669.0,32632.0,0.07071]
[1610391417124,0.00337377,32665.0,32620.0,0.38308764]
[1610391417321,0.11373377,32665.0,32620.0,0.38308764]
[1610391417522,0.00337158,32660.0,32620.0,0.38308764]
[1610391417925,0.00337158,32660.0,32632.0,0.13632608]
[1610391418123,0.57814516,32664.0,32620.0,0.38308764]
[1610391418124,0.00336874,32658.0,32620.0,0.38308764]
[1610391418323,0.07885874,32658.0,32620.0,0.38308764]
[1610391418524,0.00335649,32657.0,32620.0,0.38308764]
[1610391418825,0.00335024,32656.0,32620.0,0.38308764]
[1610391419126,0.00333796,32655.0,32620.0,0.38308764]
[1610391419527,0.00333178,32653.0,32620.0,0.38308764]
[1610391419927,0.00331245,32651.0,32620.0,0.38308764]
[1610391420127,4.31854245,32651.0,32620.0,0.38308764]
[1610391420328,0.0033056,32649.0,32620.0,0.38308764]
[1610391420730,0.6415,32635.0,32620.0,0.38308764]
[1610391420928,0.74254,32635.0,32620.0,0.38308764]
[1610391421953,0.74254,32635.0,32633.0,0.13632608]
[1610391422150,0.10104,32635.0,32633.0,0.13632608]
[1610391422538,0.46988021,32649.0,32633.0,0.13632608]
[1610391422539,0.00328804,32649.0,32633.0,0.13632608]
[1610391422938,0.07893,32651.0,32620.0,0.38308764]
[1610391423134,0.07893,32651.0,32621.0,0.11087]
[1610391423933,0.07893,32651.0,32642.0,0.13632608]
[1610391424133,0.07893,32651.0,32621.0,0.11087]
[1610391424533,0.07893,32651.0,32620.0,0.38308764]
[1610391424732,0.07893,32651.0,32641.0,1.0]
[1610391424934,0.08221786,32651.0,32641.0,1.0]
[1610391425133,0.01123666,32648.0,32641.0,0.90669466]
[1610391425333,0.0112396,32647.0,32641.0,0.90669466]
[1610391425533,0.0112396,32647.0,32643.0,1.0]
[1610391425736,0.01120708,32645.0,32643.0,1.0]
[1610391426133,0.00326873,32645.0,32643.0,0.81337569]
[1610391426333,0.01122923,32646.0,32643.0,0.81337569]
[1610391426532,0.01122923,32646.0,32644.0,1.0]
[1610391426733,0.00327805,32646.0,32644.0,0.99813382]
[1610391427133,0.00327805,32646.0,32620.0,0.38308764]
[1610391427334,0.01124996,32646.0,32620.0,0.38308764]
[1610391427934,0.00327774,32645.0,32620.0,0.38308764]
[1610391428134,0.01125623,32647.0,32620.0,0.38308764]
[1610391428534,0.00329352,32646.0,32632.0,0.13632608]
[1610391428934,0.01131075,32649.0,32632.0,0.13632608]
[1610391429334,0.00330856,32650.0,32632.0,0.13632608]
[1610391430033,0.00330552,32648.0,32620.0,0.38308764]
[1610391430434,0.00331047,32646.0,32620.0,0.38308764]
[1610391430634,0.13632608,32643.0,32620.0,0.38308764]
[1610391430838,0.20739608,32643.0,32620.0,0.38308764]
[1610391432540,0.13632608,32621.0,32620.0,0.38308764]
[1610391433138,0.07066,32630.0,32620.0,0.38308764]
[1610391433343,3.94236,32630.0,32620.0,0.38308764]
[1610391433741,3.94567306,32630.0,32620.0,0.38308764]
[1610391433939,3.94567306,32630.0,32620.0,0.31408764]
[1610391434141,3.9664,32621.0,32620.0,0.31408764]
[1610391434340,4.04457,32621.0,32620.0,0.31408764]
[1610391434540,4.18420569,32621.0,32620.0,0.18908764]
[1610391434941,7.03181213,32621.0,32620.0,0.00230567]
[1610391435140,6.35939705,32621.0,32620.0,0.00230567]
[1610391435341,6.35939705,32621.0,32588.0,0.09326]
[1610391435541,7.03182971,32621.0,32588.0,0.09326]
[1610391435945,0.0033027,32614.0,32588.0,0.09326]
[1610391436342,0.0749727,32614.0,32588.0,0.09326]
[1610391436742,0.5247,32613.0,32588.0,0.09326]
[1610391437743,0.53602074,32613.0,32588.0,0.09326]
[1610391438045,0.52800188,32613.0,32588.0,0.09326]
[1610391438448,0.5247,32613.0,32588.0,0.09326]
[1610391438645,0.5247,32613.0,32590.0,0.13632608]
[1610391439046,0.5247,32613.0,32583.0,0.06994]
[1610391439647,0.00329807,32610.0,32583.0,0.06994]
[1610391439846,0.00329807,32610.0,32578.0,4.8803]
[1610391440046,0.00329807,32610.0,32545.0,2.20672032]
[1610391440047,0.01128622,32608.0,32545.0,2.20672032]
[1610391440245,4.9967,32592.0,32545.0,2.20672032]
[1610391440448,0.07312,32592.0,32540.0,2.20772602]
[1610391440650,4.6831,32558.0,32540.0,2.20772602]
[1610391440846,4.76209,32558.0,32535.0,0.46714569]
[1610391441049,0.13632608,32536.0,32533.0,1.80864734]
[1610391441247,0.13632608,32536.0,32526.0,2.57675523]
[1610391441446,4.3388,32531.0,32507.0,2.39353759]
[1610391441647,0.13632608,32536.0,32507.0,2.39353759]
[1610391441847,3.966,32521.0,32507.0,0.08255]
[1610391442453,0.08858,32539.0,32507.0,0.08255]
[1610391442854,4.2756,32510.0,32507.0,0.08255]
[1610391443051,0.13632608,32508.0,32507.0,0.08255]
[1610391443748,4.12599013,32510.0,32507.0,0.08255]
[1610391444150,4.12599013,32510.0,32497.0,0.08822]
[1610391445750,0.84902608,32498.0,32497.0,0.08822]
[1610391445950,0.84902608,32498.0,32482.0,0.13632608]
[1610391446152,0.7127,32498.0,32445.0,2.36583231]
[1610391446552,4.2889,32498.0,32439.0,2.35953908]
[1610391446952,0.10653,32511.0,32436.0,2.3597128]
[1610391447152,4.3848,32506.0,32436.0,0.07181]
[1610391447552,0.09569,32530.0,32456.0,4.6121]
[1610391447752,0.09569,32530.0,32456.0,4.69748]
[1610391447955,3.9812,32549.0,32456.0,4.69748]
[1610391447956,0.00311775,32536.0,32456.0,4.69748]
[1610391448256,3.9812,32549.0,32456.0,4.69748]
[1610391449455,0.00312863,32548.0,32456.0,4.69748]
[1610391449855,4.00384529,32549.0,32456.0,4.69748]
[1610391449856,3.9812,32549.0,32456.0,4.69748]
[1610391450657,3.9812,32549.0,32482.0,0.49017558]
[1610391450857,3.9812,32549.0,32482.0,0.58395558]
[1610391452058,3.9812,32549.0,32518.0,0.13632608]
[1610391452259,3.9812,32549.0,32482.0,0.58395558]
[1610391452260,3.9812,32549.0,32504.0,0.11034]
[1610391452461,0.10239,32545.0,32504.0,0.11034]
[1610391452660,5.23879,32545.0,32504.0,0.11034]
[1610391454163,0.13632608,32505.0,32504.0,0.11034]
[1610391454964,4.7789,32509.0,32482.0,0.58395558]
[1610391455166,5.7789,32509.0,32482.0,0.58395558]
[1610391456164,5.7789,32509.0,32483.0,0.13632608]
[1610391456967,5.7789,32509.0,32482.0,0.58395558]
[1610391457168,1.0,32500.0,32482.0,0.58395558]
[1610391457367,0.6495,32499.0,32482.0,0.58395558]
[1610391457568,1.0,32500.0,32482.0,0.58395558]
[1610391458167,1.0,32500.0,32499.0,0.13632608]
[1610391458771,5.0,32516.0,32499.0,0.13632608]
[1610391458970,4.78,32516.0,32498.0,0.10571]
[1610391459171,0.2969,32540.0,32511.0,1.0]
[1610391459373,0.2969,32540.0,32511.0,1.09479]
[1610391460173,0.2969,32540.0,32539.0,0.13632608]
[1610391460573,0.02,32545.0,32539.0,0.13632608]
[1610391460774,0.02,32545.0,32539.0,6.13632608]
[1610391462175,0.02,32545.0,32544.0,0.13632608]
[1610391462376,0.02,32545.0,32544.0,0.22786608]
[1610391463578,0.02,32545.0,32544.0,0.09154]
[1610391464179,0.02,32545.0,32544.0,0.22599544]
[1610391464981,0.02,32545.0,32544.0,1.08966936]
[1610391466183,0.15632608,32545.0,32544.0,1.08966936]
[1610391467187,0.02,32545.0,32544.0,1.08966936]
[1610391468187,0.02,32545.0,32544.0,1.22599544]
[1610391468787,0.02,32545.0,32544.0,0.22599544]
[1610391468987,0.02,32545.0,32544.0,0.08966936]
[1610391469187,0.02,32545.0,32537.0,0.09794]
[1610391470287,0.02,32545.0,32539.0,0.13632608]
[1610391470889,0.10013,32556.0,32539.0,0.13632608]
[1610391471691,0.07404,32563.0,32539.0,0.13632608]
[1610391472293,0.13632608,32552.0,32538.0,0.09159]
[1610391472692,0.13632608,32552.0,32551.0,1.0]
[1610391474395,0.13632608,32552.0,32551.0,0.81290388]
[1610391474595,0.13632608,32552.0,32544.0,0.38312535]
[1610391474797,0.23928608,32552.0,32544.0,0.38312535]
[1610391474994,0.23928608,32552.0,32541.0,1.0]
[1610391475195,0.23928608,32552.0,32541.0,0.12672861]
[1610391475395,0.23928608,32552.0,32452.0,2.14367596]
[1610391475596,3.7566,32536.0,32449.0,2.14623539]
[1610391475796,3.83876,32536.0,32450.0,0.2812]
[1610391475997,3.83876,32536.0,32450.0,0.36989]
[1610391477596,0.08216,32536.0,32507.0,0.13632608]
[1610391477798,4.9724,32535.0,32494.0,0.08111]
[1610391478998,4.9724,32535.0,32480.0,3.8363]
[1610391479598,0.13632608,32481.0,32480.0,0.13632608]
[1610391480200,0.10899,32492.0,32480.0,0.13632608]
[1610391481605,0.13632608,32489.0,32486.0,0.13632608]
[1610391482201,0.11244,32499.0,32486.0,0.13632608]
[1610391483403,3.7014,32524.0,32486.0,0.21941608]
[1610391483603,0.13632608,32510.0,32498.0,0.13632608]
[1610391484304,0.07419,32519.0,32498.0,0.13632608]
[1610391484504,0.07419,32519.0,32498.0,0.24742608]
[1610391485303,1.0,32531.0,32498.0,0.24742608]
[1610391485504,3.883,32540.0,32529.0,0.13632608]
[1610391485704,0.01077344,32559.0,32529.0,0.13632608]
[1610391485904,0.16639139,32562.0,32529.0,0.13632608]
[1610391486305,0.1556,32562.0,32529.0,0.13632608]
[1610391487709,0.1556,32562.0,32515.0,0.1025]
[1610391488808,0.13632608,32533.0,32532.0,0.13632608]
[1610391489008,0.0751,32533.0,32515.0,0.1025]
[1610391489411,0.0751,32533.0,32506.0,0.1042]
[1610391490214,0.0751,32533.0,32492.0,4.368]
[1610391491115,0.13632608,32506.0,32505.0,0.13632608]
[1610391491313,0.0824,32511.0,32492.0,4.368]
[1610391491715,0.0824,32511.0,32459.0,0.2842]
[1610391491914,0.0824,32511.0,32474.0,3.5247]
[1610391492415,0.10316,32518.0,32474.0,3.5247]
[1610391492615,0.10316,32518.0,32474.0,3.59541]
[1610391493117,0.10316,32518.0,32517.0,0.13632608]
[1610391493316,1.0,32529.0,32517.0,0.13632608]
[1610391493516,0.47267678,32553.0,32517.0,0.13632608]
[1610391493716,0.289648,32553.0,32517.0,0.13632608]
[1610391493916,3.8959,32556.0,32517.0,0.13632608]
[1610391495217,0.13632608,32537.0,32535.0,0.13632608]
[1610391495420,0.22517608,32537.0,32535.0,0.13632608]
[1610391495818,0.08885,32537.0,32535.0,0.13632608]
[1610391500430,0.09846,32544.0,32535.0,0.13632608]
[1610391500625,0.09846,32544.0,32522.0,0.08381]
[1610391501228,0.09846,32544.0,32543.0,0.13632608]
[1610391505432,0.13632608,32560.0,32543.0,0.13632608]
[1610391506434,0.07404,32563.0,32543.0,0.13632608]
[1610391506636,0.01550004,32566.0,32543.0,0.13632608]
[1610391507235,0.01551092,32567.0,32565.0,0.13632608]
[1610391507634,0.01551092,32567.0,32565.0,0.13445572]
[1610391507834,0.01551952,32568.0,32565.0,0.13445572]
[1610391508237,0.01551242,32567.0,32565.0,0.13445572]
[1610391508435,0.10463242,32567.0,32565.0,0.13445572]
[1610391508635,0.08912,32567.0,32565.0,0.13445572]
[1610391509036,0.10464117,32567.0,32565.0,0.13445572]
[1610391509941,0.10464117,32567.0,32535.0,3.9683]
[1610391510143,0.01550637,32566.0,32535.0,3.9683]
[1610391511043,0.08912,32567.0,32535.0,3.9683]
[1610391511044,0.0155162,32565.0,32535.0,3.9683]
[1610391511246,0.0155162,32565.0,32564.0,0.13632608]
[1610391511445,0.10462509,32567.0,32564.0,0.13632608]
[1610391511643,0.10462509,32567.0,32535.0,3.9683]
[1610391512546,0.08912,32567.0,32535.0,3.9683]
[1610391513147,0.08912,32567.0,32566.0,0.13632608]
[1610391513557,0.015528,32570.0,32535.0,3.9683]
[1610391513753,0.01553419,32571.0,32535.0,3.9683]
[1610391514155,0.01553833,32574.0,32535.0,4.03961]
[1610391514363,0.55399533,32576.0,32535.0,4.03961]
[1610391514364,0.01554832,32576.0,32535.0,4.03961]
[1610391514850,1.00312807,32578.0,32535.0,4.03961]
[1610391514851,0.01555775,32578.0,32535.0,4.03961]
[1610391515251,0.01557562,32582.0,32577.0,0.13632608]
[1610391515651,0.0155746,32583.0,32577.0,0.13632608]
[1610391515853,0.0155746,32583.0,32566.0,3.5385]
[1610391516052,0.11202,32583.0,32566.0,3.5385]
[1610391516452,0.11202,32583.0,32545.0,0.07141]
[1610391516852,0.01555517,32582.0,32545.0,0.07141]
[1610391517154,0.55361446,32581.0,32545.0,0.07141]
[1610391517352,0.01552765,32579.0,32545.0,0.07141]
[1610391517552,0.44875959,32582.0,32545.0,0.07141]
[1610391517553,0.01550611,32578.0,32545.0,0.07141]
[1610391517752,0.01550611,32578.0,32571.0,0.13632608]
[1610391517953,0.01550008,32580.0,32535.0,0.07131]
[1610391518152,0.01550008,32580.0,32537.0,3.8864]
[1610391518355,0.01548163,32577.0,32537.0,3.8864]
[1610391519254,0.01540897,32576.0,32537.0,3.8864]
[1610391519454,0.09131897,32576.0,32537.0,3.8864]
[1610391519655,0.07591,32576.0,32567.0,0.13632608]
[1610391519854,0.09128957,32576.0,32567.0,0.13632608]
[1610391520354,0.09128957,32576.0,32567.0,0.13445605]
[1610391520555,0.07591,32576.0,32567.0,0.13445605]
[1610391520965,0.01534623,32574.0,32560.0,3.955]
[1610391521356,0.07591,32576.0,32560.0,3.955]
[1610391521756,0.07591,32576.0,32575.0,0.13632608]
[1610391522157,0.07591,32576.0,32560.0,3.955]
[1610391523655,0.07591,32576.0,32575.0,0.13632608]
[1610391524656,0.11202,32583.0,32575.0,0.13632608]
[1610391524857,0.01543124,32591.0,32575.0,0.13632608]
[1610391525057,0.0154235,32592.0,32576.0,3.7337]
[1610391525457,0.01544642,32598.0,32576.0,3.7337]
[1610391525656,0.01544642,32598.0,32597.0,0.13632608]
[1610391525857,0.47605632,32606.0,32597.0,0.13632608]
[1610391526160,0.47836386,32608.0,32597.0,0.13632608]
[1610391526657,0.77121138,32616.0,32597.0,0.13632608]
[1610391526658,0.01557371,32611.0,32597.0,0.13632608]
[1610391527056,0.01558726,32610.0,32597.0,0.13632608]
[1610391527258,0.12725726,32610.0,32597.0,0.13632608]
[1610391527657,0.11167,32610.0,32609.0,0.13632608]
[1610391528559,0.11167,32610.0,32584.0,4.3379]
[1610391529562,0.01549792,32603.0,32584.0,4.3379]
[1610391529762,0.09718792,32603.0,32599.0,0.13632608]
[1610391529962,0.01547056,32602.0,32599.0,0.13632608]
[1610391530362,0.08169,32603.0,32599.0,0.13445771]
[1610391534865,0.11167,32610.0,32599.0,0.13445771]
[1610391535066,4.9909,32615.0,32599.0,0.13445771]
[1610391535266,4.9909,32615.0,32579.0,4.6188]
[1610391535466,1.0,32612.0,32579.0,4.6188]
[1610391535867,0.13632608,32593.0,32580.0,0.13632608]
[1610391536070,0.09987,32593.0,32580.0,0.13632608]
[1610391537472,0.09987,32593.0,32579.0,4.6188]
[1610391538076,0.09987,32593.0,32592.0,0.13632608]
[1610391539978,0.10131,32615.0,32592.0,4.15482608]
[1610391540176,0.10131,32615.0,32592.0,4.0185]
[1610391540577,0.13632608,32626.0,32614.0,0.13632608]
[1610391542579,0.01541533,32638.0,32624.0,0.13632608]
[1610391542781,0.01542203,32637.0,32624.0,0.13632608]
[1610391542987,0.01542203,32637.0,32606.0,3.6366]
[1610391543182,0.57088528,32637.0,32606.0,3.6366]
[1610391543480,1.0,32632.0,32606.0,3.6366]